fUSD/lending_fUSD_20240518
["ID","MTS","AMOUNT","RATE_DAILY","PERIOD"]
[327336183,1715993434154,-628.051809,0.00012996,2]
[327336184,1715993434163,-628.051809,0.00012996,2]
[327336185,1715993434172,-486.67179934,0.00012997,2]
[327336186,1715993434181,-942.051809,0.00012997,2]
[327336187,1715993434190,-942.051809,0.00012997,2]
[327336188,1715993434199,-942.051809,0.00012997,2]
[327336189,1715993434209,-942.051809,0.00012997,2]
[327336190,1715993434218,-942.051809,0.00012997,2]
[327336191,1715993434227,-942.051809,0.00012997,2]
[327336192,1715993434236,-942.051809,0.00012997,2]
[327336193,1715993434246,-942.051809,0.00012997,2]
[327336194,1715993434255,-942.051809,0.00012997,2]
[327336195,1715993434264,-942.051809,0.00012997,2]
[327336196,1715993434273,-942.051809,0.00012997,2]
[327336197,1715993434283,-942.051809,0.00012997,2]
[327336198,1715993434293,-942.051809,0.00012997,2]
[327336199,1715993434302,-942.051809,0.00012997,2]
[327336200,1715993434311,-2103.70509016,0.00012998,2]
[327336201,1715993434321,-371.53769662,0.00012998,2]
[327336202,1715993434330,-354.16674949,0.00012998,2]
[327336203,1715993434340,-182.6180774,0.00012998,2]
[327336204,1715993434349,-155.18265524,0.00012998,2]
[327336205,1715993434359,-780.97653581,0.00012998,2]
[327336206,1715993434371,-310.0930108,0.00012998,2]
[327336207,1715993434380,-223.54420043,0.00012998,2]
[327336208,1715993434389,-300.40886946,0.00012998,2]
[327336209,1715993434398,-220.5413736,0.00012998,2]
[327336210,1715993434407,-212.98639449,0.00012998,2]
[327336211,1715993434416,-4063.7914001,0.00012998,2]
[327336212,1715993434425,-360.6357877,0.00012998,2]
[327336213,1715993434435,-155.10731523,0.00012998,2]
[327336214,1715993434443,-155.0,0.00012998,2]
[327336215,1715993434453,-155.0,0.00012998,2]
[327336216,1715993434462,-157.51876589,0.00012998,2]
[327336217,1715993434471,-317.73219621,0.00012998,2]
[327336218,1715993434480,-2999.49208562,0.00012998,2]
[327336219,1715993434489,-270.91895169,0.00012998,2]
[327336220,1715993434498,-3023.74078195,0.00012998,2]
[327336221,1715993434507,-302.37063543,0.00012998,2]
[327336222,1715993434517,-155.16902163,0.00012998,2]
[327336223,1715993434527,-165.61106442,0.00012998,2]
[327336224,1715993434538,-238.79076208,0.00012998,2]
[327336225,1715993434550,-211.39821818,0.00012998,2]
[327336226,1715993434559,-155.0,0.00012998,2]
[327336227,1715993434568,-305.72421467,0.00012998,2]
[327336228,1715993434583,-712.47939851,0.00012998,2]
[327336229,1715993434593,-155.54694532,0.00012998,2]
[327336230,1715993434602,-155.19260428,0.00012998,2]
[327336231,1715993434612,-155.42556279,0.00012998,2]
[327336232,1715993434624,-706.5074025,0.00012998,2]
[327336233,1715993434634,-155.0,0.00012998,2]
[327336234,1715993434643,-203.59005569,0.00012998,2]
[327336235,1715993434653,-203.06197002,0.00012998,2]
[327336236,1715993434662,-155.0,0.00012998,2]
[327336237,1715993434672,-2183.14103205,0.00012998,2]
[327336238,1715993434681,-533.810921,0.00012998,2]
[327336239,1715993434690,-155.0,0.00012998,2]
[327336240,1715993434699,-1203.11779541,0.00012998,2]
[327336241,1715993434709,-228.53909757,0.00012998,2]
[327336242,1715993434718,-3350.11470407,0.00012998,2]
[327336243,1715993434727,-157.30501999,0.00012998,2]
[327336244,1715993434737,-155.67443405,0.00012998,2]
[327336245,1715993434746,-155.79798287,0.00012998,2]
[327336246,1715993434755,-155.24535993,0.00012998,2]
[327336247,1715993434764,-206.95664151,0.00012998,2]
[327336248,1715993434774,-155.09376967,0.00012998,2]
[327336249,1715993434783,-155.20465438,0.00012998,2]
[327336250,1715993434792,-155.10422378,0.00012998,2]
[327336251,1715993434802,-840.11380582,0.00012998,2]
[327336252,1715993434812,-175.04842176,0.00012998,2]
[327336253,1715993434821,-3113.27710354,0.00012998,2]
[327336254,1715993434830,-208.17791052,0.00012998,2]
[327336255,1715993434839,-3697.29672041,0.00012998,2]
[327336256,1715993434848,-182.3773873,0.00012998,2]
[327336257,1715993434858,-155.0,0.00012998,2]
[327336258,1715993434868,-219.87195782,0.00012998,2]
[327336259,1715993434877,-159.6029597,0.00012998,2]
[327336260,1715993434886,-718.81012099,0.00012998,2]
[327336261,1715993434895,-3055.51863775,0.00012998,2]
[327336262,1715993434904,-155.13710791,0.00012998,2]
[327336263,1715993434913,-155.24307371,0.00012998,2]
[327336264,1715993434923,-1325.97003301,0.00012998,2]
[327336265,1715993434932,-155.85062154,0.00012998,2]
[327336266,1715993434941,-4268.23406349,0.00012998,2]
[327336267,1715993434950,-500.0,0.00012998,2]
[327336268,1715993434959,-500.0,0.00012998,2]
[327336269,1715993434968,-500.0,0.00012998,2]
[327336270,1715993434977,-500.0,0.00012998,2]
[327336271,1715993434986,-500.0,0.00012998,2]
[327336272,1715993434995,-1099.051809,0.00012998,2]
[327336273,1715993435004,-1099.051809,0.00012998,2]
[327336274,1715993435014,-1099.051809,0.00012998,2]
[327336275,1715993435023,-1099.051809,0.00012998,2]
[327336276,1715993435165,-1099.051809,0.00012998,2]
[327336277,1715993435175,-1099.051809,0.00012998,2]
[327336278,1715993435185,-1099.051809,0.00012998,2]
[327336279,1715993435194,-1099.051809,0.00012998,2]
[327336280,1715993435204,-1099.051809,0.00012998,2]
[327336281,1715993435213,-1099.051809,0.00012998,2]
[327336282,1715993435223,-1099.051809,0.00012998,2]
[327336283,1715993435232,-1099.051809,0.00012998,2]
[327336284,1715993435242,-1099.051809,0.00012998,2]
[327336285,1715993435251,-1099.051809,0.00012998,2]
[327336286,1715993435261,-1099.051809,0.00012998,2]
[327336287,1715993435270,-1099.051809,0.00012998,2]
[327336288,1715993435279,-157.051809,0.00012998,2]
[327336289,1715993435289,-157.051809,0.00012998,2]
[327336290,1715993435298,-157.051809,0.00012998,2]
[327336291,1715993435307,-157.051809,0.00012998,2]
[327336292,1715993435316,-157.051809,0.00012998,2]
[327336293,1715993435325,-157.051809,0.00012998,2]
[327336294,1715993435334,-4895.0,0.00012999,2]
[327336295,1715993435344,-1992.05764759,0.00012999,2]
[327336296,1715993435354,-329.48874457,0.00012999,2]
[327336297,1715993435364,-1953.4087616,0.00012999,2]
[327336298,1715993435374,-197.32634628,0.00012999,2]
[327336299,1715993435383,-150.01,0.00012999,2]
[327336300,1715993435392,-426019.42690969,0.00013,2]
[327336301,1715993435410,-2141.20306,0.00013,2]
[327336302,1715993435423,-858.16390953,0.00013,2]
[327336303,1715993435434,-303.305,0.00013,2]
[327336304,1715993435445,-105931.78323994,0.00013,2]
[327336305,1715993435456,-590.0,0.00013,2]
[327336306,1715993435467,-3360.75131799,0.00013,2]
[327336320,1715993438036,-728.29066664,0.000128,2]
[327336322,1715993438045,-277.13933335,0.00013,2]
[327336324,1715993438057,-48396.55170432,0.00013,2]
[327336326,1715993438066,-58010.04827191,0.00013,2]
[327336328,1715993438077,-538773.64734083,0.00013,2]
[327336331,1715993438088,-1702.20964643,0.00013,2]
[327336337,1715993438135,-457629.98861088,0.00013,2]
[327336521,1715993440144,-728.29066664,0.0001285,2]
[327336523,1715993440153,-717.84549916,0.00012999,2]
[327336526,1715993440175,-765.05934746,0.00012999,2]
[327336543,1715993440327,-3412.09515338,0.00012999,2]
[327336545,1715993440338,-261.76711901,0.00012999,2]
[327336547,1715993440348,-8060025.20706362,0.00013,2]
[327336549,1715993440359,-2000.0,0.00013,2]
[327336551,1715993440371,-4227472.69946099,0.00013,2]
[327336560,1715993440440,-560.58454009,0.00013,2]
[327336562,1715993440452,-1466.36281864,0.00013,2]
[327336580,1715993440621,-4628.83243497,0.00013,2]
[327336676,1715993443391,-545022.31301682,0.00013,2]
[327336677,1715993443493,-728.29066664,0.000129,2]
[327336678,1715993443503,-97.22473656,0.00013,2]
[327336679,1715993445947,-6189.40385994,0.00012999,2]
[327336680,1715993445957,-232.48628092,0.00012999,2]
[327336681,1715993445969,-985121.78352415,0.00013,2]
[327336682,1715993446064,-5163.86474545,0.00013,2]
[327336683,1715993446076,-5000.96302374,0.00013,2]
[327336684,1715993446090,-9803.88472306,0.00013,2]
[327336685,1715993446106,-3456.01307415,0.00013,2]
[327336686,1715993446131,-417.5988872,0.00013,2]
[327336687,1715993446165,-953.67,0.00013,2]
[327336688,1715993446198,-74891.54599387,0.00013,2]
[327336689,1715993446209,-491.59960137,0.00013,2]
[327336690,1715993446228,-119998.24785662,0.00013,2]
[327336697,1715993550333,42884.0,0.000235,120]
[327336703,1715994354148,158.87,0.00010607,2]
[327336704,1715994423997,59841.13,0.00010607,2]
[327336719,1715994543694,-19489.6095699,0.00010506,2]
[327336721,1715994543716,-773.80291566,0.00010507,2]
[327336722,1715994543738,-48486.58751444,0.00010607,2]
[327336758,1715994632419,-442.89929275,0.00010597,2]
[327336759,1715994632432,-57.10070725,0.00010597,2]
[327336760,1715994632572,-385.7985855,0.00010597,2]
[327336761,1715994632581,-398.7014145,0.00010597,2]
[327336800,1715994638298,-44.19787825,0.00010597,2]
[327336803,1715994638308,-442.89929275,0.00010597,2]
[327336806,1715994638317,-442.89929275,0.00010597,2]
[327336809,1715994638327,-442.89929275,0.00010597,2]
[327336811,1715994638336,-442.89929275,0.00010597,2]
[327336812,1715994638345,-442.89929275,0.00010597,2]
[327336814,1715994638354,-442.89929275,0.00010597,2]
[327336816,1715994638363,-442.89929275,0.00010597,2]
[327336818,1715994638372,-442.89929275,0.00010597,2]
[327336820,1715994638381,-442.89929275,0.00010597,2]
[327336822,1715994638391,-442.89929275,0.00010597,2]
[327336824,1715994638401,-442.89929275,0.00010597,2]
[327336825,1715994638410,-442.89929275,0.00010597,2]
[327336827,1715994638420,-442.89929275,0.00010597,2]
[327336829,1715994638429,-442.89929275,0.00010597,2]
[327336831,1715994638438,-442.89929275,0.00010597,2]
[327336833,1715994638447,-442.89929275,0.00010597,2]
[327336835,1715994638456,-442.89929275,0.00010597,2]
[327336836,1715994638465,-442.89929275,0.00010597,2]
[327336838,1715994638475,-442.89929275,0.00010597,2]
[327336840,1715994638484,-442.89929275,0.00010597,2]
[327336842,1715994638494,-442.89929275,0.00010597,2]
[327336843,1715994638503,-442.89929275,0.00010597,2]
[327336845,1715994638512,-442.89929275,0.00010597,2]
[327336847,1715994638523,-442.89929275,0.00010597,2]
[327336849,1715994638533,-442.89929275,0.00010597,2]
[327336851,1715994638541,-442.89929275,0.00010597,2]
[327336853,1715994638551,-442.89929275,0.00010597,2]
[327336854,1715994638560,-233.21513739,0.00010606,2]
[327336855,1715994638569,-54738.94370779,0.00010607,2]
[327336856,1715994638584,-1624.20869898,0.00010607,2]
[327336857,1715994638597,-124482.76391411,0.00010607,2]
[327336858,1715994638611,-258278.04018635,0.00010607,2]
[327336859,1715994638620,-19724.89885095,0.00010607,2]
[327336860,1715994638631,-180.13384001,0.00010607,2]
[327336861,1715994638640,-5948.49773569,0.000119,2]
[327336862,1715994638650,-933.82584277,0.00012182,2]
[327336863,1715994638661,-828.71125056,0.00012384,2]
[327336864,1715994638670,-12891.55,0.00012546,2]
[327336865,1715994638680,-250.0,0.00012548,2]
[327336866,1715994638689,-237.72,0.00012548,2]
[327336867,1715994638698,-3508.4,0.00012555,2]
[327336868,1715994638707,-162.0,0.00012689,2]
[327336869,1715994638718,-1375.0,0.000127,2]
[327336870,1715994638727,-3000.0,0.0001287,2]
[327336871,1715994638736,-500.0,0.00012896,2]
[327336872,1715994638745,-553.15144269,0.000129,2]
[327336873,1715994638754,-553.15144268,0.000129,2]
[327336875,1715994638763,-600.0,0.00012988,2]
[327336877,1715994638773,-1244.63352692,0.00012998,2]
[327336879,1715994638782,-4895.0,0.00012999,2]
[327336881,1715994638791,-200.49979235,0.00012999,2]
[327336883,1715994638800,-534.0,0.00013,2]
[327336885,1715994638809,-222374.43342986,0.00013,2]
[327336888,1715994638828,-178895.85636421,0.00013,2]
[327336891,1715994638839,-3575.83395709,0.00013,2]
[327336893,1715994638851,-24162.00569252,0.00013,2]
[327336895,1715994638862,-544.38170658,0.00013,2]
[327337066,1715994640499,-2017.3557928,0.00013,2]
[327337068,1715994640515,-1340.74,0.00013,2]
[327337071,1715994640527,-370.262,0.00013,2]
[327337085,1715994640660,-7738.29800432,0.00013,2]
[327337088,1715994640672,-1133.07,0.00013,2]
[327337090,1715994640685,-838.21844515,0.00013,2]
[327337092,1715994640696,-3325.0,0.00013,2]
[327337094,1715994640706,-1960.0,0.00013,2]
[327337096,1715994640718,-613.92572077,0.00013,2]
[327337099,1715994640728,-10609.45493563,0.00013,2]
[327337101,1715994640740,-1620.000003,0.00013,2]
[327337103,1715994640751,-596.12154197,0.00013,2]
[327337106,1715994640766,-774.1338722,0.00013,2]
[327337108,1715994640777,-13218.16706383,0.00013,2]
[327337111,1715994640816,-31248.80002932,0.00013,2]
[327337112,1715994640825,-4778487.88729054,0.00013,2]
[327337113,1715994640835,-163.21884329,0.00013,2]
[327337114,1715994640843,-525.25362599,0.00013,2]
[327337115,1715994640852,-3326.0370126,0.00013,2]
[327337116,1715994640862,-560.13940762,0.00013,2]
[327337117,1715994640871,-362.46740158,0.00013,2]
[327337118,1715994640880,-281398.90141791,0.00013,2]
[327337132,1715994641038,-810.70721372,0.00013,2]
[327337134,1715994641051,-9912.25576365,0.00013,2]
[327337136,1715994641063,-393334.09559289,0.00013,2]
[327337138,1715994641073,-2000.0,0.00013,2]
[327337140,1715994641083,-500.0,0.00013,2]
[327337142,1715994641092,-500.0,0.00013,2]
[327337144,1715994641101,-500.0,0.00013,2]
[327337146,1715994641110,-500.0,0.00013,2]
[327337148,1715994641119,-500.0,0.00013,2]
[327337150,1715994641129,-500.0,0.00013,2]
[327337152,1715994641138,-500.0,0.00013,2]
[327337154,1715994641147,-500.0,0.00013,2]
[327337156,1715994641157,-500.0,0.00013,2]
[327337158,1715994641166,-500.0,0.00013,2]
[327337161,1715994641175,-607.8260076,0.00013046,2]
[327337163,1715994641186,-170.2,0.0001337,15]
[327337165,1715994641195,-1000.0,0.00013425,2]
[327337167,1715994641204,-160.0,0.00013537,2]
[327337169,1715994641213,-200.0,0.00013699,2]
[327337171,1715994641222,-200.0,0.00013699,2]
[327337173,1715994641231,-200.0,0.00013699,2]
[327337174,1715994641240,-200.0,0.00013699,2]
[327337177,1715994641250,-200.0,0.00013699,2]
[327337179,1715994641259,-200.0,0.00013699,2]
[327337181,1715994641269,-200.0,0.00013699,2]
[327337183,1715994641278,-5063.3,0.00013699,2]
[327337185,1715994641287,-250.0,0.00013699,2]
[327337187,1715994641296,-500.0,0.00013699,2]
[327337189,1715994641306,-2751.0,0.00013699,2]
[327337190,1715994641315,-200.0,0.00013699,2]
[327337192,1715994641324,-150.0,0.00013762,2]
[327337195,1715994641333,-150.0,0.00013762,3]
[327337196,1715994641342,-158.11,0.00013973,2]
[327337199,1715994641352,-622.49,0.00013973,2]
[327337201,1715994641361,-364.29,0.00013973,2]
[327337203,1715994641370,-152.35,0.00013973,2]
[327337205,1715994641379,-155.0,0.00014,2]
[327337207,1715994641388,-2000.0,0.00014,2]
[327337209,1715994641398,-237.72,0.00014117,2]
[327337211,1715994641407,-162.0,0.00014275,2]
[327337213,1715994641416,-439.30731641,0.000145,2]
[327337215,1715994641425,-154.74831958,0.00014502,2]
[327337217,1715994641435,-189.52026818,0.00014525,2]
[327337219,1715994641444,-600.0,0.00014611,2]
[327337221,1715994641453,-255.21518366,0.00014647,2]
[327337222,1715994641462,-166.66666666,0.00014769,2]
[327337225,1715994641472,-439.30731641,0.00014775,2]
[327337227,1715994641481,-155.95810749,0.00014778,2]
[327337229,1715994641490,-439.30731641,0.00014786,2]
[327337230,1715994641499,-166.66666666,0.00014862,2]
[327337233,1715994641508,-255.21518366,0.00014898,2]
[327337234,1715994641517,-187.52860954,0.000149,2]
[327337237,1715994641527,-209.54359217,0.000149,2]
[327337239,1715994641536,-209.54359216,0.000149,2]
[327337240,1715994641545,-209.54359216,0.000149,2]
[327337243,1715994641555,-156.49084933,0.0001494,2]
[327337245,1715994641564,-189.52026818,0.00014943,2]
[327337246,1715994641573,-257.56180618,0.00015,2]
[327337248,1715994641583,-9708.7038882,0.00015,2]
[327337250,1715994641591,-1425.07225528,0.00015,2]
[327337252,1715994641601,-155.0,0.00015,2]
[327337254,1715994641610,-200.0,0.00015,2]
[327337256,1715994641619,-2000.0,0.00015,2]
[327337258,1715994641628,-22970.16620371,0.00015,2]
[327337265,1715994641680,-46204.61504805,0.00015,2]
[327337267,1715994641689,-13338.0,0.00015,2]
[327337269,1715994641699,-1833.0,0.00015,2]
[327337271,1715994641708,-238.30630121,0.00015,7]
[327337273,1715994641717,-152.71653481,0.00015045,2]
[327337275,1715994641726,-177.88100904,0.00015059,2]
[327337277,1715994641735,-300.0,0.00015068,2]
[327337279,1715994641744,-189.52026818,0.00015249,2]
[327337281,1715994641753,-152.71653481,0.00015283,2]
[327337283,1715994641763,-3508.4,0.00015294,2]
[327337285,1715994641772,-170.46182496,0.00015301,2]
[327337287,1715994641781,-255.21518366,0.00015349,2]
[327337289,1715994641790,-169.37772415,0.00015369,2]
[327337291,1715994641799,-3000.0,0.0001537,2]
[327337293,1715994641808,-255.21518366,0.00015492,2]
[327337295,1715994641817,-152.71653481,0.0001553,2]
[327337297,1715994641826,-166.66666666,0.00015538,2]
[327337299,1715994641835,-255.21518366,0.000156,2]
[327337301,1715994641845,-189.52026818,0.00015634,2]
[327337303,1715994641855,-154.74831958,0.00015636,2]
[327337305,1715994641864,-189.52026818,0.00015655,2]
[327337307,1715994641873,-155.95810749,0.00015678,2]
[327337309,1715994641882,-237.72,0.00015685,2]
[327337311,1715994641896,-439.30731641,0.00015686,2]
[327337313,1715994641905,-154.74831958,0.00015806,2]
[327337315,1715994641914,-255.21518366,0.00015824,2]
[327337317,1715994641924,-167.0,0.00015831,2]
[327337319,1715994641936,-155.0,0.00015841,2]
[327337321,1715994641946,-162.0,0.00015862,2]
[327337323,1715994641956,-154.74831958,0.00015913,2]
[327337325,1715994641969,-2000.0,0.00016,2]
[327337327,1715994641980,-2000.0,0.00016,2]
[327337329,1715994641989,-2000.0,0.0001601,2]
[327337331,1715994641998,-2000.0,0.0001602,2]
[327337333,1715994642008,-166.66666666,0.00016025,2]
[327337335,1715994642017,-2000.0,0.0001603,2]
[327337337,1715994642026,-439.30731641,0.00016036,2]
[327337339,1715994642036,-2000.0,0.0001604,2]
[327337341,1715994642045,-2000.0,0.0001605,2]
[327337343,1715994642054,-2000.0,0.0001606,2]
[327337345,1715994642064,-2000.0,0.0001607,2]
[327337347,1715994642073,-2000.0,0.0001608,2]
[327337349,1715994642083,-2000.0,0.0001609,2]
[327337351,1715994642092,-189.52026818,0.00016092,2]
[327337353,1715994642101,-2000.0,0.000161,2]
[327337355,1715994642111,-255.21518366,0.00016103,2]
[327337357,1715994642120,-166.66666665,0.00016106,2]
[327337359,1715994642129,-439.30731641,0.00016108,2]
[327337361,1715994642138,-152.71653481,0.00016109,2]
[327337363,1715994642147,-2996.931701,0.0001611,2]
[327337365,1715994642157,-9999.99,0.00016116,2]
[327337367,1715994642167,-152.71653481,0.00016138,2]
[327337369,1715994642176,-154.7595402,0.00016156,2]
[327337371,1715994642187,-600.0,0.00016235,2]
[327337373,1715994642196,-439.30731641,0.00016261,2]
[327337375,1715994642205,-157.66903106,0.00016303,2]
[327337377,1715994642215,-152.71653481,0.00016335,2]
[327337379,1715994642224,-167.0,0.00016354,2]
[327337381,1715994642232,-170.2,0.00016359,15]
[327337383,1715994642242,-439.30731641,0.00016378,2]
[327337385,1715994642251,-200.0,0.00016438,7]
[327337387,1715994642260,-300.0,0.00016438,2]
[327337389,1715994642269,-2670.03,0.00016438,2]
[327337391,1715994642278,-152.71653481,0.00016482,2]
[327337393,1715994642287,-255.21518366,0.00016495,2]
[327337395,1715994642296,-2354.58285139,0.000165,2]
[327337397,1715994642306,-5000.0,0.00016578,2]
[327337399,1715994642314,-189.52026818,0.00016589,2]
[327337401,1715994642324,-255.21518366,0.00016597,2]
[327337403,1715994642333,-439.30731641,0.00016651,2]
[327337404,1715994642342,-179.61,0.00016712,2]
[327337406,1715994642351,-189.52026818,0.00016806,2]
[327337408,1715994642360,-155.95810749,0.00016856,2]
[327337410,1715994642371,-167.0,0.00016876,2]
[327337412,1715994642380,-283.97820169,0.000169,2]
[327337414,1715994642390,-172.23,0.000169,2]
[327337416,1715994642399,-150.0,0.00016911,2]
[327337417,1715994642408,-189.52026818,0.00016926,2]
[327337418,1715994642417,-152.84858728,0.00016958,2]
[327337419,1715994642427,-155.0,0.00017,2]
[327337420,1715994642437,-2000.0,0.00017,2]
[327337421,1715994642446,-255.21518366,0.00017001,2]
[327337422,1715994642455,-189.52026818,0.0001701,2]
[327337423,1715994642464,-189.52026818,0.00017021,2]
[327337424,1715994642474,-150.63567191,0.00017045,2]
[327337425,1715994642483,-154.74831958,0.00017105,2]
[327337426,1715994642492,-156.49084933,0.00017219,2]
[327337427,1715994642501,-150.25232363,0.00017243,2]
[327337428,1715994642510,-237.72,0.00017254,2]
[327337429,1715994642519,-405.21355048,0.00017259,2]
[327337430,1715994642529,-5000.0,0.00017292,2]
[327337431,1715994642539,-189.52026818,0.00017378,2]
[327337432,1715994642548,-167.0,0.00017399,2]
[327337433,1715994642558,-255.21518366,0.00017411,2]
[327337434,1715994642567,-10000.0,0.00017435,2]
[327337435,1715994642576,-162.0,0.00017448,2]
[327337436,1715994642586,-439.30731641,0.00017505,2]
[327337437,1715994642595,-152.71653481,0.00017572,2]
[327337438,1715994642608,-439.30731641,0.0001769,2]
[327337439,1715994642619,-255.21518366,0.00017723,2]
[327337441,1715994642631,-152.71653481,0.00017783,2]
[327337443,1715994642644,-600.0,0.00017858,2]
[327337444,1715994642656,-3000.0,0.0001787,2]
[327337445,1715994642668,-151.0,0.00017871,2]
[327337446,1715994642680,-167.0,0.00017921,2]
[327337447,1715994642692,-439.30731641,0.00017928,2]
[327337448,1715994642701,-154.7595402,0.00017993,2]
[327337449,1715994642711,-1554.87708521,0.00018,2]
[327337450,1715994642722,-155.0,0.00018,2]
[327337451,1715994642733,-7271.05388781,0.00018,2]
[327337452,1715994642744,-223.19642593,0.00018,2]
[327337453,1715994642754,-1108.60351584,0.00018,2]
[327337454,1715994642764,-2000.0,0.00018,2]
[327337455,1715994642775,-3508.4,0.00018034,2]
[327337456,1715994642785,-1658.39397925,0.000181,2]
[327337458,1715994642797,-1004.88727076,0.00018168,2]
[327337460,1715994642807,-255.21518366,0.00018179,2]
[327337462,1715994642818,-154.7595402,0.0001827,2]
[327337464,1715994642829,-156.49084933,0.00018271,2]
[327337466,1715994642839,-167.0,0.00018444,2]
[327337467,1715994642850,-439.30731641,0.00018451,2]
[327337468,1715994642861,-155.95810749,0.00018493,2]
[327337469,1715994642871,-189.52026818,0.00018541,2]
[327337470,1715994642885,-150.25232363,0.00018555,2]
[327337471,1715994642899,-189.52026818,0.00018555,2]
[327337472,1715994642910,-152.71653481,0.00018739,2]
[327337473,1715994642920,-152.71653481,0.00018752,2]
[327337474,1715994642932,-255.21518366,0.00018767,2]
[327337475,1715994642943,-439.30731641,0.00018774,2]
[327337476,1715994642954,-255.21518366,0.0001881,2]
[327337477,1715994642966,-5000.0,0.00018812,2]
[327337478,1715994642977,-237.72,0.00018822,2]
[327337479,1715994642988,-22937.48034047,0.00018841,2]
[327337480,1715994642999,-439.30731641,0.00018869,2]
[327337481,1715994643009,-255.21518366,0.00018918,2]
[327337482,1715994643020,-155.0,0.00019,2]
[327337483,1715994643030,-44958.50268548,0.00019,5]
[327337484,1715994643042,-1033.88207033,0.00019,2]
[327337485,1715994643053,-992.5,0.00019,2]
[327337486,1715994643065,-38261.98719878,0.00019,2]
[327337487,1715994643077,-152.71653481,0.00019006,2]
[327337488,1715994643087,-189.52026818,0.00019021,2]
[327337490,1715994643098,-162.0,0.00019034,2]
[327337491,1715994643108,-162.0,0.00019059,2]
[327337492,1715994643118,-255.21518366,0.00019147,2]
[327337493,1715994643129,-189.52026818,0.00019176,2]
[327337494,1715994643139,-5063.3,0.00019178,2]
[327337495,1715994643149,-7748.85226468,0.000192,2]
[327337496,1715994643160,-7445.59952943,0.000192,2]
[327337497,1715994643171,-158.87,0.0001921,2]
[327337498,1715994643182,-152.99399679,0.00019259,2]
[327337500,1715994643194,-255.21518366,0.00019316,2]
[327337501,1715994643204,-170.2,0.00019347,15]
[327337502,1715994643216,-5753.0,0.00019387,2]
[327337503,1715994643227,-289.0,0.00019387,2]
[327337504,1715994643237,-1464.0,0.00019387,2]
[327337505,1715994643249,-3823.14970727,0.00019387,2]
[327337506,1715994643263,-1578.71698897,0.00019387,2]
[327337507,1715994643288,-32456.13330376,0.00019387,2]
[327337508,1715994643300,-1217.71272335,0.00019387,2]
[327337509,1715994643316,-4696.28727665,0.00019387,2]
[327337510,1715994643326,-1060.0,0.00019387,2]
[327337511,1715994643337,-154.74831958,0.00019461,2]
[327337513,1715994643348,-2100.0,0.00019477,2]
[327337514,1715994643359,-300.0,0.00019477,2]
[327337515,1715994643370,-189.52026818,0.00019479,2]
[327337516,1715994643381,-439.30731641,0.0001948,2]
[327337517,1715994643391,-600.0,0.00019481,2]
[327337518,1715994643401,-906.16147662,0.000195,2]
[327337519,1715994643410,-154.03,0.0001957,15]
[327337520,1715994643420,-150.5,0.0001958,15]
[327337521,1715994643430,-150.5,0.0001959,15]
[327337522,1715994643441,-5000.0,0.00019622,2]
[327337523,1715994643451,-166.66666666,0.00019622,2]
[327337524,1715994643463,-166.66666666,0.00019649,2]
[327337525,1715994643473,-150.25232363,0.00019755,2]
[327337526,1715994643485,-1013.78,0.000198,2]
[327337527,1715994643496,-600.68,0.000198,2]
[327337528,1715994643509,-154.74831958,0.00019805,2]
[327337529,1715994643520,-154.74831958,0.00019818,2]
[327337530,1715994643531,-150.25232363,0.00019874,2]
[327337531,1715994643542,-159.96588011,0.00019897,2]
[327337532,1715994643552,-4567.53301201,0.000199,3]
[327337533,1715994643562,-152.84858728,0.00019945,2]
[327337534,1715994643572,-152.71653481,0.00019952,2]
[327337535,1715994643582,-154.74831958,0.00019967,2]
[327337536,1715994643592,-189.52026818,0.00019969,2]
[327337537,1715994643603,-255.21518366,0.00019989,2]
[327337538,1715994643613,-2000.0,0.0002,15]